fUSD/lending_fUSD_20250105
["ID","MTS","AMOUNT","RATE_DAILY","PERIOD"]
[347727546,1736085042133,-500.0,8.219e-05,2]
[347727547,1736085042142,-500.0,8.219e-05,2]
[347727548,1736085042152,-500.0,8.219e-05,2]
[347727549,1736085042163,-500.0,8.219e-05,2]
[347727550,1736085042174,-500.0,8.219e-05,2]
[347727551,1736085042184,-500.0,8.219e-05,2]
[347727552,1736085042195,-500.0,8.219e-05,2]
[347727553,1736085042205,-500.0,8.219e-05,2]
[347727554,1736085042215,-2632.84,8.219e-05,2]
[347727555,1736085042225,-500.0,8.219e-05,2]
[347727556,1736085042235,-500.0,8.219e-05,2]
[347727557,1736085042243,-787.43,8.219e-05,2]
[347727558,1736085042254,-785.94,8.219e-05,2]
[347727559,1736085042263,-500.0,8.219e-05,2]
[347727560,1736085042273,-833.96,8.219e-05,2]
[347727561,1736085042282,-168.81051035,8.219e-05,2]
[347727562,1736085042296,-500.0,8.219e-05,2]
[347727563,1736085042305,-718.82,8.219e-05,2]
[347727564,1736085042314,-500.0,8.219e-05,2]
[347727565,1736085042323,-500.0,8.219e-05,2]
[347727566,1736085042332,-500.0,8.219e-05,2]
[347727567,1736085042341,-500.0,8.219e-05,2]
[347727568,1736085042351,-2322.49,8.219e-05,2]
[347727569,1736085042360,-500.0,8.219e-05,2]
[347727570,1736085042370,-500.0,8.219e-05,2]
[347727571,1736085042379,-500.0,8.219e-05,2]
[347727572,1736085042388,-1642.91,8.219e-05,2]
[347727573,1736085042397,-500.0,8.219e-05,2]
[347727574,1736085042406,-357.54783271,8.219e-05,2]
[347727575,1736085042415,-500.0,8.219e-05,2]
[347727576,1736085042424,-500.0,8.219e-05,2]
[347727577,1736085042433,-500.0,8.219e-05,2]
[347727578,1736085042442,-500.0,8.219e-05,2]
[347727579,1736085042451,-500.0,8.219e-05,2]
[347727580,1736085042461,-500.0,8.219e-05,2]
[347727581,1736085042470,-500.0,8.219e-05,2]
[347727582,1736085042479,-500.0,8.219e-05,2]
[347727583,1736085042489,-500.0,8.219e-05,2]
[347727584,1736085042499,-500.0,8.219e-05,2]
[347727585,1736085042508,-500.0,8.219e-05,2]
[347727586,1736085042517,-500.0,8.219e-05,2]
[347727587,1736085042528,-500.0,8.219e-05,2]
[347727588,1736085042537,-500.0,8.219e-05,2]
[347727589,1736085042546,-1847.92,8.219e-05,2]
[347727590,1736085042555,-500.0,8.219e-05,2]
[347727591,1736085042566,-500.0,8.219e-05,2]
[347727592,1736085042576,-500.0,8.219e-05,2]
[347727593,1736085042585,-500.0,8.219e-05,2]
[347727594,1736085042594,-753.19,8.219e-05,2]
[347727595,1736085042603,-500.0,8.219e-05,2]
[347727596,1736085042613,-500.0,8.219e-05,2]
[347727597,1736085042622,-3072.3,8.219e-05,2]
[347727598,1736085042632,-500.0,8.219e-05,2]
[347727599,1736085042641,-605.21628665,8.219e-05,2]
[347727600,1736085042650,-482.79952404,8.219e-05,2]
[347727601,1736085042659,-653.65,8.219e-05,2]
[347727602,1736085042669,-500.0,8.219e-05,2]
[347727603,1736085042678,-1107.77,8.219e-05,2]
[347727604,1736085042687,-500.0,8.219e-05,2]
[347727605,1736085042698,-500.0,8.219e-05,2]
[347727606,1736085042707,-500.0,8.219e-05,2]
[347727607,1736085042718,-500.0,8.219e-05,2]
[347727608,1736085042728,-500.0,8.219e-05,2]
[347727609,1736085042738,-500.0,8.219e-05,2]
[347727610,1736085042747,-500.0,8.219e-05,2]
[347727611,1736085042758,-846.49,8.219e-05,2]
[347727612,1736085042767,-451.70250086,8.219e-05,2]
[347727613,1736085042776,-777.98,8.219e-05,2]
[347727614,1736085042785,-500.0,8.219e-05,2]
[347727615,1736085042795,-500.0,8.219e-05,2]
[347727616,1736085042804,-1027.69,8.219e-05,2]
[347727617,1736085042814,-500.0,8.219e-05,2]
[347727618,1736085042824,-500.0,8.219e-05,2]
[347727619,1736085042833,-500.0,8.219e-05,2]
[347727620,1736085042843,-1498.8,8.219e-05,2]
[347727621,1736085042852,-5106.32,8.219e-05,2]
[347727622,1736085042861,-500.0,8.219e-05,2]
[347727623,1736085042870,-500.0,8.219e-05,2]
[347727624,1736085042880,-500.0,8.219e-05,2]
[347727625,1736085042889,-4706.53,8.219e-05,2]
[347727626,1736085042899,-500.0,8.219e-05,2]
[347727627,1736085042908,-500.0,8.219e-05,2]
[347727629,1736085042917,-500.0,8.219e-05,2]
[347727631,1736085042926,-500.0,8.219e-05,2]
[347727633,1736085042936,-1568.61,8.219e-05,2]
[347727634,1736085042945,-962.03,8.219e-05,2]
[347727635,1736085042954,-500.0,8.219e-05,2]
[347727636,1736085042964,-500.0,8.219e-05,2]
[347727637,1736085042974,-1071.94,8.219e-05,2]
[347727638,1736085042983,-500.0,8.219e-05,2]
[347727639,1736085042993,-500.0,8.219e-05,2]
[347727641,1736085043003,-500.0,8.219e-05,2]
[347727642,1736085043013,-500.0,8.219e-05,2]
[347727644,1736085043021,-500.0,8.219e-05,2]
[347727646,1736085043031,-500.0,8.219e-05,2]
[347727648,1736085043040,-733.8,8.219e-05,2]
[347727649,1736085043049,-168.74442971,8.219e-05,2]
[347727650,1736085043059,-717.7,8.219e-05,2]
[347727651,1736085043068,-794.13,8.219e-05,2]
[347727652,1736085043078,-621.39,8.219e-05,2]
[347727653,1736085043087,-500.0,8.219e-05,2]
[347727655,1736085043097,-500.0,8.219e-05,2]
[347727657,1736085043106,-1501.67,8.219e-05,2]
[347727659,1736085043115,-1116.81,8.219e-05,2]
[347727661,1736085043125,-500.0,8.219e-05,2]
[347727663,1736085043134,-686.18,8.219e-05,2]
[347727665,1736085043143,-892.4,8.219e-05,2]
[347727667,1736085043152,-500.0,8.219e-05,2]
[347727670,1736085043161,-3411.17,8.219e-05,2]
[347727672,1736085043171,-500.0,8.219e-05,2]
[347727673,1736085043179,-1078.1,8.219e-05,2]
[347727674,1736085043188,-500.0,8.219e-05,2]
[347727675,1736085043198,-500.0,8.219e-05,2]
[347727676,1736085043207,-3770.18,8.219e-05,2]
[347727677,1736085043216,-500.0,8.219e-05,2]
[347727678,1736085043226,-884.0,8.219e-05,2]
[347727679,1736085043235,-822.09,8.219e-05,2]
[347727680,1736085043244,-1362.79,8.219e-05,2]
[347727681,1736085043254,-500.0,8.219e-05,2]
[347727682,1736085043264,-500.0,8.219e-05,2]
[347727683,1736085043274,-500.0,8.219e-05,2]
[347727684,1736085043284,-616.15,8.219e-05,2]
[347727685,1736085043293,-843.07,8.219e-05,2]
[347727686,1736085043302,-500.0,8.219e-05,2]
[347727687,1736085043312,-917.26,8.219e-05,2]
[347727688,1736085043321,-1253.28,8.219e-05,2]
[347727689,1736085043331,-1094.08,8.219e-05,2]
[347727690,1736085043341,-500.0,8.219e-05,2]
[347727691,1736085043350,-500.0,8.219e-05,2]
[347727692,1736085043360,-755.89,8.219e-05,2]
[347727693,1736085043369,-500.0,8.219e-05,2]
[347727694,1736085043378,-828.34,8.219e-05,2]
[347727695,1736085043388,-725.21,8.219e-05,2]
[347727696,1736085043397,-500.0,8.219e-05,2]
[347727697,1736085043406,-500.0,8.219e-05,2]
[347727698,1736085043416,-5610.28,8.219e-05,2]
[347727699,1736085043426,-500.0,8.219e-05,2]
[347727700,1736085043436,-643.38,8.219e-05,2]
[347727701,1736085043446,-551.13678301,8.219e-05,2]
[347727702,1736085043455,-500.0,8.219e-05,2]
[347727703,1736085043464,-500.0,8.219e-05,2]
[347727704,1736085043474,-744.45,8.219e-05,2]
[347727705,1736085043483,-733.6,8.219e-05,2]
[347727706,1736085043493,-293.50791048,8.219e-05,2]
[347727707,1736085043502,-1324.47,8.219e-05,2]
[347727708,1736085043512,-756.32,8.219e-05,2]
[347727709,1736085043522,-893.38,8.219e-05,2]
[347727711,1736085043531,-808.9,8.219e-05,2]
[347727713,1736085043541,-1177.93,8.219e-05,2]
[347727714,1736085043550,-500.0,8.219e-05,2]
[347727717,1736085043560,-987.04,8.219e-05,2]
[347727718,1736085043570,-500.0,8.219e-05,2]
[347727720,1736085043579,-1208.03,8.219e-05,2]
[347727722,1736085043589,-500.0,8.219e-05,2]
[347727724,1736085043599,-500.0,8.219e-05,2]
[347727726,1736085043609,-975.07,8.219e-05,2]
[347727728,1736085043619,-590.36,8.219e-05,2]
[347727730,1736085043628,-2129.13,8.219e-05,2]
[347727732,1736085043637,-3026.81,8.219e-05,2]
[347727734,1736085043647,-244.03533649,8.219e-05,2]
[347727736,1736085043656,-500.0,8.219e-05,2]
[347727738,1736085043666,-617.00079302,8.219e-05,2]
[347727740,1736085043675,-500.0,8.219e-05,2]
[347727742,1736085043684,-666.47,8.219e-05,2]
[347727744,1736085043693,-539.13,8.219e-05,2]
[347727746,1736085043703,-728.21,8.219e-05,2]
[347727748,1736085043712,-720.65,8.219e-05,2]
[347727750,1736085043720,-500.0,8.219e-05,2]
[347727752,1736085043729,-500.0,8.219e-05,2]
[347727754,1736085043738,-500.0,8.219e-05,2]
[347727755,1736085043748,-1343.98,8.219e-05,2]
[347727756,1736085043758,-618.36,8.219e-05,2]
[347727757,1736085043767,-500.0,8.219e-05,2]
[347727758,1736085043777,-500.0,8.219e-05,2]
[347727759,1736085043786,-584.09,8.219e-05,2]
[347727760,1736085043795,-733.34,8.219e-05,2]
[347727761,1736085043804,-1413.51,8.219e-05,2]
[347727762,1736085043813,-500.0,8.219e-05,2]
[347727763,1736085043823,-500.0,8.219e-05,2]
[347727764,1736085043832,-775.7,8.219e-05,2]
[347727765,1736085043841,-500.0,8.219e-05,2]
[347727766,1736085043851,-934.93,8.219e-05,2]
[347727767,1736085043860,-500.0,8.219e-05,2]
[347727768,1736085043870,-3911.38,8.219e-05,2]
[347727769,1736085043879,-2059.11,8.219e-05,2]
[347727770,1736085043889,-500.0,8.219e-05,2]
[347727771,1736085043899,-500.0,8.219e-05,2]
[347727772,1736085043908,-1331.26,8.219e-05,2]
[347727773,1736085043918,-500.0,8.219e-05,2]
[347727774,1736085043927,-510.69,8.219e-05,2]
[347727775,1736085043936,-500.0,8.219e-05,2]
[347727776,1736085043945,-500.0,8.219e-05,2]
[347727777,1736085043955,-984.32,8.219e-05,2]
[347727778,1736085043964,-786.85,8.219e-05,2]
[347727779,1736085043973,-500.0,8.219e-05,2]
[347727781,1736085043983,-500.0,8.219e-05,2]
[347727783,1736085043993,-758.58,8.219e-05,2]
[347727785,1736085044004,-500.0,8.219e-05,2]
[347727787,1736085044013,-925.8,8.219e-05,2]
[347727788,1736085044022,-1456.01,8.219e-05,2]
[347727789,1736085044031,-500.0,8.219e-05,2]
[347727790,1736085044040,-500.0,8.219e-05,2]
[347727791,1736085044049,-500.0,8.219e-05,2]
[347727792,1736085044060,-626.79,8.219e-05,2]
[347727793,1736085044069,-500.0,8.219e-05,2]
[347727794,1736085044078,-728.14,8.219e-05,2]
[347727795,1736085044088,-500.0,8.219e-05,2]
[347727796,1736085044098,-670.01,8.219e-05,2]
[347727797,1736085044108,-1426.25,8.219e-05,2]
[347727798,1736085044116,-1536.28,8.219e-05,2]
[347727799,1736085044125,-725.31,8.219e-05,2]
[347727800,1736085044135,-923.57,8.219e-05,2]
[347727801,1736085044144,-500.0,8.219e-05,2]
[347727802,1736085044155,-500.0,8.219e-05,2]
[347727803,1736085044164,-858.45,8.219e-05,2]
[347727804,1736085044174,-500.0,8.219e-05,2]
[347727805,1736085044183,-508.67,8.219e-05,2]
[347727806,1736085044195,-2261.56,8.219e-05,2]
[347727807,1736085044204,-500.0,8.219e-05,2]
[347727808,1736085044213,-500.0,8.219e-05,2]
[347727809,1736085044224,-500.0,8.219e-05,2]
[347727810,1736085044234,-500.0,8.219e-05,2]
[347727811,1736085044243,-594.45,8.219e-05,2]
[347727812,1736085044252,-849.24,8.219e-05,2]
[347727813,1736085044261,-876.26,8.219e-05,2]
[347727814,1736085044270,-816.98,8.219e-05,2]
[347727815,1736085044281,-3122.74,8.219e-05,2]
[347727816,1736085044294,-500.0,8.219e-05,2]
[347727817,1736085044304,-851.92,8.219e-05,2]
[347727818,1736085044314,-500.0,8.219e-05,2]
[347727819,1736085044323,-500.0,8.219e-05,2]
[347727820,1736085044332,-500.0,8.219e-05,2]
[347727821,1736085044342,-619.28,8.219e-05,2]
[347727822,1736085044352,-500.0,8.219e-05,2]
[347727823,1736085044363,-1456.63,8.219e-05,2]
[347727824,1736085044373,-500.0,8.219e-05,2]
[347727825,1736085044383,-1220.62,8.219e-05,2]
[347727826,1736085044392,-500.0,8.219e-05,2]
[347727827,1736085044402,-550.22,8.219e-05,2]
[347727828,1736085044630,-504.28,8.219e-05,2]
[347727829,1736085044640,-500.0,8.219e-05,2]
[347727830,1736085044651,-784.59,8.219e-05,2]
[347727831,1736085044660,-500.0,8.219e-05,2]
[347727832,1736085044671,-674.9,8.219e-05,2]
[347727833,1736085044682,-602.5,8.219e-05,2]
[347727834,1736085044692,-1536.94,8.219e-05,2]
[347727835,1736085044702,-1000.34,8.219e-05,2]
[347727836,1736085044711,-661.6,8.219e-05,2]
[347727837,1736085044721,-5132.64,8.219e-05,2]
[347727838,1736085044731,-500.0,8.219e-05,2]
[347727839,1736085044742,-500.0,8.219e-05,2]
[347727840,1736085044751,-1082.42,8.219e-05,2]
[347727841,1736085044760,-1803.26,8.219e-05,2]
[347727842,1736085044769,-500.0,8.219e-05,2]
[347727843,1736085044779,-500.0,8.219e-05,2]
[347727844,1736085044788,-500.0,8.219e-05,2]
[347727845,1736085044798,-500.0,8.219e-05,2]
[347727846,1736085044808,-889.9,8.219e-05,2]
[347727847,1736085044818,-892.21,8.219e-05,2]
[347727848,1736085044828,-938.64,8.219e-05,2]
[347727849,1736085044838,-1334.95,8.219e-05,2]
[347727850,1736085044848,-500.0,8.219e-05,2]
[347727851,1736085044858,-500.0,8.219e-05,2]
[347727852,1736085044868,-500.0,8.219e-05,2]
[347727853,1736085044878,-500.0,8.219e-05,2]
[347727854,1736085044887,-856.87,8.219e-05,2]
[347727855,1736085044897,-2000.15,8.219e-05,2]
[347727856,1736085044907,-500.0,8.219e-05,2]
[347727857,1736085044917,-500.0,8.219e-05,2]
[347727858,1736085044927,-442.68104262,8.219e-05,2]
[347727859,1736085044937,-500.0,8.219e-05,2]
[347727860,1736085044946,-500.0,8.219e-05,2]
[347727861,1736085044956,-500.0,8.219e-05,2]
[347727862,1736085044967,-792.77,8.219e-05,2]
[347727863,1736085044976,-395.2223412,8.219e-05,2]
[347727864,1736085044986,-500.0,8.219e-05,2]
[347727865,1736085044996,-2330.02,8.219e-05,2]
[347727866,1736085045006,-798.19,8.219e-05,2]
[347727867,1736085045016,-500.0,8.219e-05,2]
[347727868,1736085045026,-500.0,8.219e-05,2]
[347727869,1736085045035,-889.38,8.219e-05,2]
[347727870,1736085045045,-500.0,8.219e-05,2]
[347727871,1736085045055,-270.71791864,8.219e-05,2]
[347727872,1736085045066,-725.79,8.219e-05,2]
[347727873,1736085045075,-701.66,8.219e-05,2]
[347727874,1736085045085,-1627.57,8.219e-05,2]
[347727875,1736085045095,-500.0,8.219e-05,2]
[347727876,1736085045106,-1024.54,8.219e-05,2]
[347727877,1736085045116,-561.5240863,8.219e-05,2]
[347727878,1736085045126,-436.84633698,8.219e-05,2]
[347727879,1736085045135,-500.0,8.219e-05,2]
[347727880,1736085045145,-500.0,8.219e-05,2]
[347727881,1736085045155,-500.0,8.219e-05,2]
[347727882,1736085045164,-369.0,8.219e-05,2]
[347727883,1736085045174,-500.0,8.219e-05,2]
[347727884,1736085045183,-479.37,8.219e-05,2]
[347727885,1736085045193,-2164.45,8.219e-05,2]
[347727886,1736085045203,-981.89,8.219e-05,2]
[347727887,1736085045212,-500.0,8.219e-05,2]
[347727888,1736085045221,-705.33,8.219e-05,2]
[347727889,1736085045231,-500.0,8.219e-05,2]
[347727890,1736085045240,-1128.78,8.219e-05,2]
[347727891,1736085045251,-799.44,8.219e-05,2]
[347727892,1736085045261,-637.14,8.219e-05,2]
[347727893,1736085045270,-500.0,8.219e-05,2]
[347727894,1736085045280,-1682.1,8.219e-05,2]
[347727895,1736085045290,-781.37,8.219e-05,2]
[347727896,1736085045302,-613.55,8.219e-05,2]
[347727897,1736085045312,-882.68,8.219e-05,2]
[347727898,1736085045323,-500.0,8.219e-05,2]
[347727899,1736085045333,-500.0,8.219e-05,2]
[347727900,1736085045342,-973.95,8.219e-05,2]
[347727901,1736085045352,-500.0,8.219e-05,2]
[347727902,1736085045361,-867.05,8.219e-05,2]
[347727903,1736085045371,-503.21,8.219e-05,2]
[347727904,1736085045381,-742.15,8.219e-05,2]
[347727905,1736085045390,-608.84,8.219e-05,2]
[347727906,1736085045400,-599.42,8.219e-05,2]
[347727907,1736085045410,-2993.69,8.219e-05,2]
[347727908,1736085045420,-500.0,8.219e-05,2]
[347727909,1736085045430,-345.0,8.219e-05,2]
[347727910,1736085045439,-892.53,8.219e-05,2]
[347727911,1736085045448,-500.0,8.219e-05,2]
[347727912,1736085045457,-500.0,8.219e-05,2]
[347727913,1736085045467,-1457.73,8.219e-05,2]
[347727914,1736085045476,-156.287959,8.219e-05,2]
[347727915,1736085045486,-500.0,8.219e-05,2]
[347727916,1736085045495,-554.26,8.219e-05,2]
[347727917,1736085045507,-500.0,8.219e-05,2]
[347727918,1736085045517,-1552.68,8.219e-05,2]
[347727919,1736085045527,-1552.68,8.219e-05,2]
[347727920,1736085045537,-3157.09,8.219e-05,2]
[347727921,1736085045547,-500.0,8.219e-05,2]
[347727922,1736085045555,-500.0,8.219e-05,2]
[347727923,1736085045565,-588.65,8.219e-05,2]
[347727924,1736085045575,-500.0,8.219e-05,2]
[347727925,1736085045586,-500.0,8.219e-05,2]
[347727926,1736085045595,-500.0,8.219e-05,2]
[347727927,1736085045605,-153.671496,8.219e-05,2]
[347727928,1736085045615,-500.0,8.219e-05,2]
[347727929,1736085045625,-500.0,8.219e-05,2]
[347727930,1736085045636,-500.0,8.219e-05,2]
[347727931,1736085045645,-500.0,8.219e-05,2]
[347727932,1736085045654,-500.0,8.219e-05,2]
[347727933,1736085045665,-155.826196,8.219e-05,2]
[347727934,1736085045674,-1151.81,8.219e-05,2]
[347727935,1736085045684,-1378.46,8.219e-05,2]
[347727936,1736085045694,-885.51,8.219e-05,2]
[347727937,1736085045702,-500.0,8.219e-05,2]
[347727938,1736085045711,-547.97,8.219e-05,2]
[347727939,1736085045721,-1997.32,8.219e-05,2]
[347727940,1736085045730,-815.57,8.219e-05,2]
[347727941,1736085045740,-500.0,8.219e-05,2]
[347727942,1736085045749,-500.0,8.219e-05,2]
[347727943,1736085045760,-691.74,8.219e-05,2]
[347727944,1736085045769,-214.07422505,8.219e-05,2]
[347727945,1736085045779,-998.35,8.219e-05,2]
[347727946,1736085045788,-500.0,8.219e-05,2]
[347727947,1736085045798,-500.0,8.219e-05,2]
[347727948,1736085045809,-724.18,8.219e-05,2]
[347727949,1736085045819,-500.0,8.219e-05,2]
[347727950,1736085045829,-500.0,8.219e-05,2]
[347727951,1736085045839,-674.62,8.219e-05,2]
[347727952,1736085045849,-500.0,8.219e-05,2]
[347727953,1736085045858,-613.62,8.219e-05,2]
[347727954,1736085045868,-912.5,8.219e-05,2]
[347727955,1736085045878,-500.0,8.219e-05,2]
[347727956,1736085045887,-156.683989,8.219e-05,2]
[347727957,1736085045897,-500.0,8.219e-05,2]
[347727958,1736085045907,-1924.38,8.219e-05,2]
[347727959,1736085045916,-500.0,8.219e-05,2]
[347727960,1736085045926,-1588.26,8.219e-05,2]
[347727961,1736085045936,-5976.37,8.219e-05,2]
[347727962,1736085045945,-859.45,8.219e-05,2]
[347727963,1736085045955,-1121.77,8.219e-05,2]
[347727965,1736085045964,-849.38,8.219e-05,2]
[347727966,1736085045974,-500.0,8.219e-05,2]
[347727967,1736085045983,-500.0,8.219e-05,2]
[347727968,1736085045992,-1103.37,8.219e-05,2]
[347727969,1736085046002,-500.0,8.219e-05,2]
[347727970,1736085046011,-500.0,8.219e-05,2]
[347727971,1736085046021,-687.97,8.219e-05,2]
[347727972,1736085046031,-520.28552455,8.219e-05,2]
[347727973,1736085046040,-500.0,8.219e-05,2]
[347727974,1736085046050,-500.0,8.219e-05,2]
[347727976,1736085046059,-500.0,8.219e-05,2]
[347727978,1736085046068,-1125.73,8.219e-05,2]
[347727979,1736085046078,-9311.15,8.219e-05,2]
[347727980,1736085046087,-1388.82,8.219e-05,2]
[347727981,1736085046096,-500.0,8.219e-05,2]
[347727982,1736085046107,-1225.05,8.219e-05,2]
[347727984,1736085046116,-500.0,8.219e-05,2]
[347727985,1736085046126,-1233.06,8.219e-05,2]
[347727986,1736085046135,-261.69255783,8.219e-05,2]
[347727987,1736085046144,-500.0,8.219e-05,2]
[347727988,1736085046155,-500.0,8.219e-05,2]
[347727989,1736085046165,-500.0,8.219e-05,2]
[347727990,1736085046175,-4979.4,8.219e-05,2]
[347727991,1736085046185,-880.53,8.219e-05,2]
[347727992,1736085046194,-500.0,8.219e-05,2]
[347727993,1736085046204,-1761.41,8.219e-05,2]
[347727994,1736085046214,-500.0,8.219e-05,2]
[347727995,1736085046224,-3472.59,8.219e-05,2]
[347727996,1736085046233,-500.0,8.219e-05,2]
[347727997,1736085046242,-821.92,8.219e-05,2]
[347727998,1736085046252,-500.0,8.219e-05,2]
[347727999,1736085046262,-1655.77,8.219e-05,2]
[347728000,1736085046271,-500.0,8.219e-05,2]
[347728001,1736085046281,-500.0,8.219e-05,2]
[347728002,1736085046291,-156.67840505,8.219e-05,2]
[347728003,1736085046302,-2315.08,8.219e-05,2]
[347728004,1736085046312,-500.0,8.219e-05,2]
[347728005,1736085046321,-993.11,8.219e-05,2]
[347728006,1736085046332,-500.0,8.219e-05,2]
[347728007,1736085046341,-500.0,8.219e-05,2]
[347728008,1736085046351,-500.0,8.219e-05,2]
[347728009,1736085046360,-500.0,8.219e-05,2]
[347728010,1736085046369,-500.0,8.219e-05,2]
[347728011,1736085046379,-500.0,8.219e-05,2]
[347728012,1736085046389,-500.0,8.219e-05,2]
[347728013,1736085046399,-874.02,8.219e-05,2]
[347728014,1736085046408,-1593.59,8.219e-05,2]
[347728015,1736085046418,-500.0,8.219e-05,2]
[347728016,1736085046427,-500.0,8.219e-05,2]
[347728017,1736085046437,-500.0,8.219e-05,2]
[347728018,1736085046447,-470.2523349,8.219e-05,2]
[347728019,1736085046456,-500.0,8.219e-05,2]
[347728020,1736085046467,-500.0,8.219e-05,2]
[347728021,1736085046476,-6860.71,8.219e-05,2]
[347728022,1736085046485,-500.0,8.219e-05,2]
[347728023,1736085046495,-445.37345399,8.219e-05,2]
[347728024,1736085046505,-3339.01,8.219e-05,2]
[347728025,1736085046515,-937.22,8.219e-05,2]
[347728026,1736085046527,-500.0,8.219e-05,2]
[347728027,1736085046537,-1005.07,8.219e-05,2]
[347728028,1736085046546,-500.0,8.219e-05,2]
[347728029,1736085046556,-633.42,8.219e-05,2]
[347728030,1736085046566,-500.0,8.219e-05,2]
[347728031,1736085046577,-500.0,8.219e-05,2]
[347728032,1736085046587,-500.0,8.219e-05,2]
[347728033,1736085046597,-500.0,8.219e-05,2]
[347728035,1736085046607,-500.0,8.219e-05,2]
[347728037,1736085046617,-945.16,8.219e-05,2]
[347728039,1736085046626,-2663.92,8.219e-05,2]
[347728041,1736085046636,-500.0,8.219e-05,2]
[347728043,1736085046646,-500.0,8.219e-05,2]
[347728045,1736085046655,-500.0,8.219e-05,2]
[347728047,1736085046664,-1817.76,8.219e-05,2]
[347728049,1736085046674,-500.0,8.219e-05,2]
[347728051,1736085046683,-500.0,8.219e-05,2]
[347728053,1736085046693,-500.0,8.219e-05,2]
[347728055,1736085046703,-500.0,8.219e-05,2]
[347728057,1736085046713,-500.0,8.219e-05,2]
[347728059,1736085046723,-500.0,8.219e-05,2]
[347728061,1736085046732,-666.55,8.219e-05,2]
[347728063,1736085046743,-500.0,8.219e-05,2]
[347728065,1736085046752,-434.59272903,8.219e-05,2]
[347728067,1736085046762,-1370.64,8.219e-05,2]
[347728069,1736085046772,-500.0,8.219e-05,2]
[347728071,1736085046781,-5619.25,8.219e-05,2]
[347728073,1736085046791,-2470.32,8.219e-05,2]
[347728075,1736085046801,-500.0,8.219e-05,2]
[347728077,1736085046810,-500.0,8.219e-05,2]
[347728079,1736085046819,-500.0,8.219e-05,2]
[347728081,1736085046829,-500.0,8.219e-05,2]
[347728083,1736085046838,-500.0,8.219e-05,2]
[347728085,1736085046847,-1519.66,8.219e-05,2]
[347728087,1736085046857,-500.0,8.219e-05,2]
[347728089,1736085046866,-500.0,8.219e-05,2]
[347728091,1736085046875,-1215.04,8.219e-05,2]
[347728093,1736085046885,-500.0,8.219e-05,2]
[347728095,1736085046894,-825.99,8.219e-05,2]
[347728097,1736085046904,-8537.81,8.219e-05,2]
[347728099,1736085046913,-500.0,8.219e-05,2]
[347728101,1736085046923,-500.0,8.219e-05,2]
[347728103,1736085046933,-500.0,8.219e-05,2]
[347728105,1736085046942,-500.0,8.219e-05,2]
[347728107,1736085046952,-5040.03,8.219e-05,2]
[347728109,1736085046961,-500.0,8.219e-05,2]
[347728111,1736085046972,-500.0,8.219e-05,2]
[347728121,1736085047052,-500.0,8.219e-05,2]
[347728123,1736085047062,-823.44,8.219e-05,2]
[347728125,1736085047073,-2323.85,8.219e-05,2]
[347728127,1736085047083,-523.13325967,8.219e-05,2]
[347728129,1736085047092,-500.0,8.219e-05,2]
[347728131,1736085047101,-806.19,8.219e-05,2]
[347728133,1736085047111,-2589.22,8.219e-05,2]
[347728135,1736085047121,-500.0,8.219e-05,2]
[347728137,1736085047130,-500.0,8.219e-05,2]
[347728139,1736085047140,-500.0,8.219e-05,2]
[347728140,1736085047149,-525.19,8.219e-05,2]
[347728142,1736085047158,-500.0,8.219e-05,2]
[347728144,1736085047167,-1082.63,8.219e-05,2]
[347728146,1736085047176,-827.3,8.219e-05,2]
[347728148,1736085047185,-738.14,8.219e-05,2]
[347728150,1736085047194,-500.0,8.219e-05,2]
[347728152,1736085047203,-1863.08,8.219e-05,2]
[347728154,1736085047212,-500.0,8.219e-05,2]
[347728156,1736085047222,-6993.54,8.219e-05,2]
[347728158,1736085047231,-500.0,8.219e-05,2]